bitfinex/quotes_BTCUSD_20241027
["timestamp","ask_amount","ask_price","bid_price","bid_amount"]
[1730018755391,0.37631744,67154.0,67153.0,0.008868]
[1730018759355,0.36234547,67154.0,67153.0,0.008868]
[1730018759563,0.37630193,67154.0,67153.0,0.008868]
[1730018760955,0.34727009,67154.0,67153.0,0.008868]
[1730018761317,0.34447886,67154.0,67153.0,0.008868]
[1730018761525,0.18440263,67154.0,67153.0,0.008868]
[1730018761732,0.18440263,67154.0,67153.0,0.104468]
[1730018761943,0.18440263,67154.0,67153.0,0.253381]
[1730018762585,0.18440263,67154.0,67153.0,0.104468]
[1730018762800,0.18438431,67154.0,67153.0,0.104468]
[1730018763138,0.18438431,67154.0,67153.0,0.253381]
[1730018763801,0.1983384,67154.0,67153.0,0.253381]
[1730018763962,0.22736293,67154.0,67153.0,0.253381]
[1730018764764,0.21340884,67154.0,67153.0,0.104468]
[1730018764970,0.19833843,67154.0,67153.0,0.104468]
[1730018765155,0.22736306,67154.0,67153.0,0.104468]
[1730018768508,0.37627406,67154.0,67153.0,0.104468]
[1730018768719,0.37627406,67154.0,67153.0,0.09609503]
[1730018768949,0.37627495,67154.0,67153.0,0.09609503]
[1730018769157,0.18438431,67154.0,67153.0,0.09609503]
[1730018769360,0.22736451,67154.0,67153.0,0.09609503]
[1730018769560,0.22713175,67154.0,67153.0,0.09609503]
[1730018775355,0.22713259,67154.0,67153.0,0.09609503]
[1730018777024,0.18415155,67154.0,67153.0,0.09609503]
[1730018777232,0.27681756,67154.0,67153.0,0.09609503]
[1730018777461,0.29914672,67154.0,67153.0,0.09609503]
[1730018778730,0.44805772,67154.0,67153.0,0.09609503]
[1730018780960,0.29914672,67154.0,67153.0,0.09609503]
[1730018781173,0.2991248,67154.0,67153.0,0.09609503]
[1730018781399,0.28796147,67154.0,67153.0,0.09609503]
[1730018781598,0.32815681,67154.0,67153.0,0.09609503]
[1730018781852,0.33932218,67154.0,67153.0,0.09609503]
[1730018784190,0.2131596,67154.0,67153.0,0.09609503]
[1730018785948,0.21315799,67154.0,67153.0,0.09609503]
[1730018787725,0.21315799,67154.0,67153.0,0.41880803]
[1730018788570,0.21315799,67154.0,67153.0,0.26989503]
[1730018789501,0.21315799,67154.0,67153.0,0.41880803]
[1730018790121,0.21315799,67154.0,67153.0,0.26989503]
[1730018790568,0.21314908,67154.0,67153.0,0.26989503]
[1730018790769,0.21314908,67154.0,67153.0,0.41880803]
[1730018791721,0.21314908,67154.0,67153.0,0.26989503]
[1730018794748,0.21314908,67154.0,67153.0,0.41880803]
[1730018794968,0.21309019,67154.0,67153.0,0.41880803]
[1730018798114,0.18406022,67154.0,67153.0,0.41880803]
[1730018798318,0.19521846,67154.0,67153.0,0.41880803]
[1730018798541,0.21307164,67154.0,67153.0,0.41880803]
[1730018799264,0.21307164,67154.0,67153.0,0.26989503]
[1730018800211,0.21307164,67154.0,67153.0,0.18849503]
[1730018802386,0.18406022,67154.0,67153.0,0.18849503]
[1730018802580,0.24208297,67154.0,67153.0,0.18849503]
[1730018804265,0.21307162,67154.0,67153.0,0.18849503]
[1730018804505,0.21307771,67154.0,67153.0,0.18849503]
[1730018808019,0.21307771,67154.0,67153.0,0.33740803]
[1730018808257,0.21307771,67154.0,67153.0,0.50193506]
[1730018808258,0.04832124,67154.0,67153.0,0.50193506]
[1730018808600,0.0306554,67154.0,67153.0,0.50193506]
[1730018809009,0.01280223,67154.0,67153.0,0.65243887]
[1730018809613,0.001644,67154.0,67153.0,0.65243887]
[1730018809812,0.001644,67154.0,67153.0,0.65743887]
[1730018812202,0.001644,67154.0,67153.0,0.7446659]
[1730018812643,0.001644,67154.0,67153.0,0.8546659]
[1730018812844,0.003644,67156.0,67155.0,0.163909]
[1730018813183,0.003644,67156.0,67155.0,0.58401281]
[1730018813399,0.003644,67156.0,67155.0,0.61276324]
[1730018821079,0.003644,67156.0,67155.0,0.61313554]
[1730018827803,0.003644,67156.0,67155.0,0.7875896]
[1730018832962,0.003644,67156.0,67155.0,0.61313554]
[1730018833214,0.003644,67156.0,67155.0,0.7875896]
[1730018847390,0.003644,67156.0,67155.0,0.70036257]
[1730018848494,0.003644,67156.0,67155.0,0.67161214]
[1730018848718,0.003644,67156.0,67155.0,0.75883917]
[1730018864261,0.002,67157.0,67156.0,0.163907]
[1730018864518,0.001644,67162.0,67161.0,0.441495]
[1730018864681,0.001644,67162.0,67161.0,0.79520032]
[1730018865268,0.001644,67162.0,67161.0,0.83987576]
[1730018865896,0.001644,67162.0,67161.0,0.75264873]
[1730018867148,0.001644,67162.0,67161.0,0.70797329]
[1730018871841,0.001644,67162.0,67161.0,0.71955908]
[1730018874412,0.001644,67162.0,67161.0,0.63233205]
[1730018874878,0.001644,67162.0,67161.0,0.71955908]
[1730018877506,0.001644,67162.0,67161.0,0.54195908]
[1730018882490,0.001644,67162.0,67161.0,0.54278008]
[1730018894385,0.001644,67162.0,67161.0,0.63000711]
[1730018895633,0.001644,67162.0,67161.0,0.54278008]
[1730018910108,0.001644,67162.0,67161.0,0.58743106]
[1730018916568,0.001644,67162.0,67161.0,0.58743106]
[1730018918603,0.001644,67162.0,67161.0,0.58747446]
[1730018918819,0.001644,67162.0,67161.0,0.76757446]
[1730018919025,0.001644,67162.0,67161.0,0.72288008]
[1730018923680,0.001644,67162.0,67161.0,0.78992165]
[1730018924292,0.001644,67162.0,67161.0,0.77833586]
[1730018926375,0.001644,67162.0,67161.0,0.93370644]
[1730018930675,0.001644,67162.0,67161.0,0.86666487]
[1730018934717,0.001644,67162.0,67161.0,0.88452087]
[1730018935581,0.001644,67162.0,67161.0,0.95156281]
[1730018939024,0.001644,67162.0,67161.0,0.88452087]
[1730018939464,0.001644,67162.0,67161.0,0.95156075]
[1730018941605,0.001644,67162.0,67161.0,0.88452087]
[1730018941953,0.001644,67162.0,67161.0,0.72915029]
[1730018944106,0.001644,67162.0,67161.0,0.88434561]
[1730018944499,0.001644,67162.0,67161.0,0.95138481]
[1730018945587,0.001644,67162.0,67161.0,0.64865029]
[1730018948657,0.001644,67162.0,67161.0,0.87060093]
[1730018949578,0.001644,67162.0,67161.0,0.75314493]
[1730018950268,0.001644,67162.0,67161.0,0.53119429]
[1730018952212,0.001644,67162.0,67161.0,0.44396726]
[1730018952435,0.001644,67162.0,67161.0,0.53119429]
[1730018959736,0.001644,67162.0,67161.0,0.59823324]
[1730018960407,0.001644,67162.0,67161.0,0.53119429]
[1730018962739,0.001644,67162.0,67161.0,0.54268662]
[1730018963815,0.001644,67162.0,67161.0,0.64078662]
[1730018964230,0.001644,67162.0,67161.0,0.70782557]
[1730018964908,0.001644,67162.0,67161.0,0.78922557]
[1730018969295,0.001644,67162.0,67161.0,0.94453835]
[1730018970232,0.001644,67162.0,67161.0,0.78922557]
[1730018973712,0.001644,67162.0,67161.0,0.94456427]
[1730018975458,0.001644,67162.0,67161.0,0.78922557]
[1730018975796,0.001644,67162.0,67161.0,0.94458637]
[1730018976746,0.001644,67162.0,67161.0,0.94458136]
[1730018981408,0.001644,67162.0,67161.0,0.94462957]
[1730018986749,0.001644,67162.0,67161.0,0.91588212]
[1730018992202,0.001644,67162.0,67161.0,0.83448212]
[1730018999663,0.001644,67162.0,67161.0,0.74725509]
[1730018999817,0.001644,67162.0,67161.0,0.83448212]
[1730019000448,0.001644,67162.0,67161.0,0.64915509]
[1730019000650,0.001644,67162.0,67161.0,0.73638212]
[1730019001409,0.001644,67162.0,67161.0,0.73138212]
[1730019002781,0.001644,67162.0,67161.0,0.64415509]
[1730019002947,0.001644,67162.0,67161.0,0.72638212]
[1730019003164,0.001644,67162.0,67161.0,0.57098396]
[1730019004366,0.001644,67162.0,67161.0,0.48375693]
[1730019004619,0.001644,67162.0,67161.0,0.57098396]
[1730019007864,0.001644,67162.0,67161.0,0.57098929]
[1730019010673,0.001644,67162.0,67161.0,0.50393917]
[1730019010917,0.001644,67162.0,67161.0,0.57098886]
[1730019012539,0.001644,67162.0,67161.0,0.50393917]
[1730019013026,0.001644,67162.0,67161.0,0.54363885]
[1730019013487,0.001644,67162.0,67161.0,0.49893917]
[1730019018140,0.001644,67162.0,67161.0,0.41171214]
[1730019018387,0.001644,67162.0,67161.0,0.49893917]
[1730019029348,0.001644,67162.0,67161.0,0.50393917]
[1730019029983,0.001644,67162.0,67161.0,0.60333917]
[1730019030170,0.001644,67162.0,67161.0,0.6905662]
[1730019030419,0.001644,67162.0,67161.0,0.60333917]
[1730019030642,0.001644,67162.0,67161.0,0.6905662]
[1730019032221,0.001644,67162.0,67161.0,0.7680662]
[1730019034065,0.001644,67162.0,67161.0,0.68083917]
[1730019053681,0.001644,67162.0,67161.0,0.7680662]
[1730019053891,0.001644,67162.0,67161.0,0.72552715]
[1730019058409,0.001644,67162.0,67161.0,0.68083917]
[1730019058627,0.001644,67162.0,67161.0,0.72552828]
[1730019061475,0.001644,67162.0,67161.0,0.72552748]
[1730019061708,0.001644,67162.0,67161.0,0.68083917]
[1730019063239,0.001644,67162.0,67161.0,0.7680662]
[1730019066970,0.001644,67162.0,67161.0,0.68083917]
[1730019067602,0.001644,67162.0,67161.0,0.67950151]
[1730019069986,0.001644,67162.0,67161.0,0.67875614]
[1730019070313,0.001644,67162.0,67161.0,0.59152911]
[1730019070675,0.001644,67162.0,67161.0,0.6744809]
[1730019073252,0.001644,67162.0,67161.0,0.66819296]
[1730019074119,0.001644,67162.0,67161.0,0.65670063]
[1730019079004,0.001644,67162.0,67161.0,0.72373731]
[1730019081234,0.001644,67162.0,67161.0,0.81096434]
[1730019081827,0.001644,67162.0,67161.0,0.72373731]
[1730019085553,0.001644,67162.0,67161.0,0.87923335]
[1730019093308,0.001644,67162.0,67161.0,0.72373731]
[1730019097483,0.001644,67162.0,67161.0,0.54683731]
[1730019102379,0.001644,67162.0,67161.0,0.72466434]
[1730019102589,0.001644,67162.0,67161.0,0.9017637]
[1730019102804,0.001644,67162.0,67161.0,0.7251634]
[1730019104523,0.001644,67162.0,67161.0,0.81452047]
[1730019110707,0.001644,67162.0,67161.0,0.8282634]
[1730019111132,0.001644,67162.0,67161.0,0.91549043]
[1730019113025,0.001644,67162.0,67161.0,0.92712545]
[1730019114812,0.001644,67162.0,67161.0,0.93712545]
[1730019115060,0.001644,67162.0,67161.0,1.03885325]
[1730019118596,0.001644,67162.0,67161.0,0.92712545]
[1730019118806,0.001644,67162.0,67161.0,0.75267139]
[1730019119027,0.001644,67162.0,67161.0,0.92712545]
[1730019119683,0.001644,67162.0,67161.0,1.03885325]
[1730019120409,0.001644,67162.0,67161.0,0.95162622]
[1730019121533,0.001644,67162.0,67161.0,0.83989842]
[1730019123201,0.001644,67162.0,67161.0,0.840284]
[1730019127755,0.001644,67162.0,67161.0,0.84028442]
[1730019132464,0.001644,67162.0,67161.0,0.84033156]
[1730019136217,0.001644,67162.0,67161.0,0.84233156]
[1730019136715,0.001644,67162.0,67161.0,0.88887344]
[1730019138102,0.001644,67162.0,67161.0,0.88687344]
[1730019138612,0.001644,67162.0,67161.0,0.99851844]
[1730019140485,0.001644,67162.0,67161.0,1.00051844]
[1730019140747,0.001644,67162.0,67161.0,0.99877783]
[1730019141966,0.001644,67162.0,67161.0,0.99880197]
[1730019142193,0.001644,67162.0,67161.0,1.00080197]
[1730019143828,0.001644,67162.0,67161.0,0.99880197]
[1730019145400,0.001644,67162.0,67161.0,0.88714232]
[1730019145814,0.001644,67162.0,67161.0,0.99882535]
[1730019146255,0.001644,67162.0,67161.0,0.88714232]
[1730019150343,0.001644,67162.0,67161.0,0.79991529]
[1730019150554,0.001644,67162.0,67161.0,0.88714232]
[1730019151388,0.001644,67162.0,67161.0,0.88706092]
[1730019155942,0.001644,67162.0,67161.0,0.88712367]
[1730019160745,0.001644,67162.0,67161.0,0.8871355]
[1730019170092,0.001644,67162.0,67161.0,0.88703525]
[1730019183139,0.001644,67162.0,67161.0,0.88692987]
[1730019186604,0.0003539,67162.0,67161.0,0.88692987]
[1730019192616,0.0003539,67162.0,67161.0,0.88692782]
[1730019195656,0.0003539,67162.0,67161.0,0.88892782]
[1730019196365,0.0003539,67162.0,67161.0,0.88692782]
[1730019196816,0.0003539,67162.0,67161.0,0.88892782]
[1730019197671,0.0003539,67162.0,67161.0,0.88692782]
[1730019197893,0.0003539,67162.0,67161.0,0.88892782]
[1730019198356,0.0003539,67162.0,67161.0,0.88692782]
[1730019202964,0.0003539,67162.0,67161.0,0.88892782]
[1730019204085,0.0003539,67162.0,67161.0,0.88692782]
[1730019204306,0.0003539,67162.0,67161.0,0.88892782]
[1730019204522,0.0003539,67162.0,67161.0,0.88692782]
[1730019204739,0.0003539,67162.0,67161.0,0.88892782]
[1730019204948,0.0003539,67162.0,67161.0,0.88692782]
[1730019205190,0.0003539,67162.0,67161.0,1.10932961]
[1730019205396,0.0003539,67162.0,67161.0,0.88892782]
[1730019206052,0.0003539,67162.0,67161.0,0.97615485]
[1730019206887,0.0003539,67162.0,67161.0,0.97415485]
[1730019208599,0.0003539,67162.0,67161.0,0.88692782]
[1730019211346,0.0003539,67162.0,67161.0,0.73167753]
[1730019211625,0.0003539,67162.0,67161.0,0.88685782]
[1730019220823,0.0003539,67162.0,67161.0,0.8867786]
[1730019225352,0.0003539,67162.0,67161.0,0.88695089]
[1730019230110,0.0003539,67162.0,67161.0,0.88699436]
[1730019234034,0.0003539,67162.0,67161.0,0.79976733]
[1730019234254,0.0003539,67162.0,67161.0,0.88699436]
[1730019234772,0.0003539,67162.0,67161.0,0.88691077]
[1730019247428,0.0003539,67162.0,67161.0,0.88666066]
[1730019247653,0.0003539,67162.0,67161.0,0.88866066]
[1730019248124,0.0003539,67162.0,67161.0,0.97588769]
[1730019250026,0.003644,67164.0,67163.0,0.255891]
[1730019250254,0.003644,67164.0,67163.0,0.72091982]
[1730019251121,0.003644,67164.0,67163.0,0.74966164]
[1730019253660,0.003644,67164.0,67163.0,0.74970624]
[1730019255411,0.003644,67164.0,67163.0,0.74770624]
[1730019256068,0.003644,67164.0,67163.0,0.74970624]
[1730019256514,0.003644,67164.0,67163.0,0.7493984]
[1730019256732,0.003644,67164.0,67163.0,0.8311984]
[1730019257643,0.003644,67164.0,67163.0,0.8291984]
[1730019260207,0.003644,67164.0,67163.0,0.8311984]
[1730019261127,0.003644,67164.0,67163.0,0.67647851]
[1730019261342,0.003644,67164.0,67163.0,0.83124562]
[1730019262921,0.003644,67164.0,67163.0,0.82924562]
[1730019268834,0.003644,67164.0,67163.0,0.65744562]
[1730019269302,0.003644,67164.0,67163.0,0.76910702]
[1730019269525,0.003644,67164.0,67163.0,0.72256744]
[1730019271291,0.003644,67164.0,67163.0,0.69382562]
[1730019272199,0.003644,67164.0,67163.0,0.78105265]
[1730019274734,0.003644,67164.0,67163.0,0.78305265]
[1730019274946,0.003644,67164.0,67163.0,0.78105265]
[1730019276343,0.003644,67164.0,67163.0,0.82758498]
[1730019277014,0.003644,67164.0,67163.0,0.78105265]
[1730019277453,0.003644,67164.0,67163.0,0.82758647]
[1730019283017,0.003644,67164.0,67163.0,0.92358647]
[1730019283664,0.003644,67164.0,67163.0,0.81192277]
[1730019284759,0.003644,67164.0,67163.0,0.92360296]
[1730019285629,0.003644,67164.0,67163.0,0.92188773]
[1730019287006,0.003644,67164.0,67163.0,0.8102049]
[1730019290283,0.003644,67164.0,67163.0,0.72292117]
[1730019291370,0.003644,67164.0,67163.0,0.8101482]
[1730019291807,0.003644,67164.0,67163.0,0.72292117]
[1730019293684,0.003644,67164.0,67163.0,0.72492117]
[1730019295504,0.003644,67164.0,67163.0,0.72292117]
[1730019302470,0.003644,67164.0,67163.0,0.8101482]
[1730019302910,0.003644,67164.0,67163.0,0.81020558]
[1730019303338,0.003644,67164.0,67163.0,0.84002558]
[1730019303548,0.003644,67164.0,67163.0,0.81020558]
[1730019304645,0.003644,67164.0,67163.0,0.71420558]
[1730019306607,0.003644,67164.0,67163.0,0.71620558]
[1730019307471,0.003644,67164.0,67163.0,0.80126943]
[1730019307699,0.003644,67164.0,67163.0,0.80326943]
[1730019308327,0.003644,67164.0,67163.0,0.80126943]
[1730019311220,0.003644,67164.0,67163.0,0.7140424]
[1730019311902,0.003644,67164.0,67163.0,0.80126943]
[1730019312111,0.003644,67164.0,67163.0,0.80105478]
[1730019313406,0.003644,67164.0,67163.0,0.71382775]
[1730019313913,0.003644,67164.0,67163.0,0.80305478]
[1730019314148,0.003644,67164.0,67163.0,0.78005478]
[1730019314587,0.003644,67164.0,67163.0,0.95415478]
[1730019315079,0.001644,67174.0,67173.0,0.34109603]
[1730019315352,0.001644,67174.0,67173.0,0.6750115]
[1730019316133,0.001644,67174.0,67173.0,0.6730115]
[1730019316388,0.001644,67174.0,67173.0,0.76232639]
[1730019316629,0.001644,67174.0,67173.0,0.69750863]
[1730019316897,0.001644,67174.0,67173.0,0.69950863]
[1730019317132,0.001644,67174.0,67173.0,0.58578447]
[1730019317384,0.001644,67174.0,67173.0,0.67508013]
[1730019318530,0.001644,67174.0,67173.0,0.58578447]
[1730019319460,0.001644,67174.0,67173.0,0.58778447]
[1730019320359,0.001644,67174.0,67173.0,0.65472828]
[1730019322143,0.001644,67174.0,67173.0,0.65272828]
[1730019322354,0.001644,67174.0,67173.0,0.51152573]
[1730019322786,0.001644,67174.0,67173.0,0.51352573]
[1730019323018,0.001644,67174.0,67173.0,0.51152573]
[1730019323702,0.001644,67174.0,67173.0,0.44458192]
[1730019323940,0.001644,67174.0,67173.0,0.44658192]
[1730019324843,0.001644,67174.0,67173.0,0.59869731]
[1730019325057,0.001644,67174.0,67173.0,0.59669731]
[1730019326509,0.001644,67174.0,67173.0,0.44458192]
[1730019342417,0.001644,67174.0,67173.0,0.4891727]
[1730019347692,0.001644,67174.0,67173.0,0.48917278]
[1730019348341,0.001644,67174.0,67173.0,0.44458192]
[1730019349487,0.001644,67174.0,67173.0,0.49111643]
[1730019352410,0.001644,67174.0,67173.0,0.55800272]
[1730019353346,0.001644,67174.0,67173.0,0.71021008]
[1730019355324,0.001644,67174.0,67173.0,0.64332379]
[1730019357331,0.001644,67174.0,67173.0,0.73250551]
[1730019358418,0.001644,67174.0,67173.0,0.64332379]
[1730019359502,0.001644,67174.0,67173.0,0.75480095]
[1730019360355,0.001644,67174.0,67173.0,0.64332379]
[1730019364755,0.001644,67174.0,67173.0,0.64352436]
[1730019366629,0.001644,67174.0,67173.0,0.6435225]
[1730019367986,0.001644,67174.0,67173.0,0.73074953]
[1730019368405,0.001644,67174.0,67173.0,0.70871094]
[1730019368614,0.001644,67174.0,67173.0,0.59698799]
[1730019369305,0.001644,67174.0,67173.0,0.68635005]
[1730019372275,0.001644,67174.0,67173.0,0.81551853]
[1730019373763,0.001644,67174.0,67173.0,0.81751853]
[1730019374013,0.001644,67174.0,67173.0,0.66511246]
[1730019374233,0.001644,67174.0,67173.0,0.81602629]
[1730019378627,0.001644,67174.0,67173.0,0.81564814]
[1730019379271,0.001644,67174.0,67173.0,0.82160114]
[1730019380736,0.001644,67180.0,67174.0,0.348367]
[1730019380944,0.001644,67180.0,67174.0,0.86266406]
[1730019383179,0.001644,67180.0,67174.0,0.95189109]
[1730019383406,0.001644,67180.0,67174.0,0.86419791]
[1730019383829,0.001644,67180.0,67174.0,0.86219791]
[1730019384271,0.001644,67180.0,67174.0,0.77497088]
[1730019384488,0.001644,67180.0,67174.0,0.86219791]
[1730019387383,0.001644,67180.0,67174.0,0.86207426]
[1730019387990,0.001644,67180.0,67174.0,0.86205959]
[1730019388809,0.001644,67180.0,67174.0,0.71012838]
[1730019389965,0.001644,67180.0,67174.0,0.86247109]
[1730019392913,0.001644,67180.0,67174.0,0.8619956]
[1730019397592,0.001644,67180.0,67174.0,0.86167865]
[1730019406804,0.001644,67180.0,67174.0,0.86170353]
[1730019407014,0.001644,67180.0,67174.0,0.86252553]
[1730019409424,1e-06,67175.0,67174.0,0.94975256]
[1730019409871,1e-06,67175.0,67174.0,0.95175256]
[1730019411444,1e-06,67175.0,67174.0,0.9521233]
[1730019413049,1e-06,67175.0,67174.0,0.9501233]
[1730019414911,1e-06,67175.0,67174.0,0.86289627]
[1730019415860,1e-06,67175.0,67174.0,0.77566924]
[1730019416076,1e-06,67175.0,67174.0,0.86289627]
[1730019418193,1e-06,67175.0,67174.0,0.77566924]
[1730019418443,1e-06,67175.0,67174.0,0.86289627]
[1730019423867,1e-06,67175.0,67174.0,0.71095038]
[1730019424116,1e-06,67175.0,67174.0,0.86274516]
[1730019446302,1e-06,67175.0,67174.0,0.78524516]
[1730019447640,1e-06,67175.0,67174.0,0.63345038]
[1730019448483,1e-06,67175.0,67174.0,0.78745715]
[1730019453108,1e-06,67175.0,67174.0,0.63345038]
[1730019454217,1e-06,67175.0,67174.0,0.54622335]
[1730019454418,1e-06,67175.0,67174.0,0.63345038]
[1730019455283,1e-06,67175.0,67174.0,0.53895038]
[1730019458501,1e-06,67175.0,67174.0,0.45172335]
[1730019458707,1e-06,67175.0,67174.0,0.53895038]
[1730019466828,1e-06,67175.0,67174.0,0.61932335]
[1730019467239,1e-06,67175.0,67174.0,0.79377741]
[1730019470037,1e-06,67175.0,67174.0,0.94742334]
[1730019471926,1e-06,67175.0,67174.0,0.94744165]
[1730019472127,1e-06,67175.0,67174.0,0.94944165]
[1730019472722,1e-06,67175.0,67174.0,0.94744165]
[1730019476446,1e-06,67175.0,67174.0,0.79377741]
[1730019476659,1e-06,67175.0,67174.0,0.94721089]
[1730019480815,1e-06,67175.0,67174.0,0.94917981]
[1730019481030,1e-06,67175.0,67174.0,0.94918467]
[1730019481292,1e-06,67175.0,67174.0,0.94718467]
[1730019494020,1e-06,67175.0,67174.0,0.9471644]
[1730019495569,1e-06,67175.0,67174.0,1.16956619]
[1730019495798,0.001644,67183.0,67182.0,0.42830306]
[1730019496031,0.001644,67183.0,67182.0,0.73219386]
[1730019496256,0.02146429,67183.0,67182.0,0.73219386]
[1730019496483,0.001644,67183.0,67182.0,0.73219386]
[1730019496923,0.001644,67183.0,67182.0,0.82155614]
[1730019497596,0.001644,67183.0,67182.0,0.73219386]
[1730019498514,0.075954,67188.0,67187.0,0.34106503]
[1730019498741,0.0871137,67188.0,67187.0,0.49156884]
[1730019499906,0.0871137,67188.0,67187.0,0.40434181]
[1730019500129,0.0871137,67188.0,67187.0,0.49156884]
[1730019501020,0.0931037,67188.0,67187.0,0.40434181]
[1730019501242,0.0931037,67188.0,67187.0,0.49156884]
[1730019501954,0.09310282,67188.0,67187.0,0.49156884]
[1730019504797,0.09310282,67188.0,67187.0,0.50317526]
[1730019505262,0.09310235,67188.0,67187.0,0.50317526]
[1730019509079,0.09310152,67188.0,67187.0,0.50317526]
[1730019510371,0.09474552,67188.0,67187.0,0.50317526]
[1730019511347,0.09474542,67188.0,67187.0,0.50317526]
[1730019514282,0.09474542,67188.0,67187.0,0.49817526]
[1730019514518,0.01879142,67188.0,67187.0,0.50317526]
[1730019514731,0.01879142,67188.0,67187.0,0.41594823]
[1730019514955,0.01879142,67188.0,67187.0,0.50317526]
[1730019518970,0.01879142,67188.0,67187.0,0.41594823]
[1730019521981,0.01879142,67188.0,67187.0,0.41676923]
[1730019523347,0.01879142,67188.0,67187.0,0.41176923]
[1730019523573,0.01879142,67188.0,67187.0,0.50399626]
[1730019524875,0.01879142,67188.0,67187.0,0.49899626]
[1730019525734,0.007634,67188.0,67187.0,0.49636923]
[1730019525936,0.007634,67188.0,67187.0,0.58359626]
[1730019526158,0.007634,67188.0,67187.0,0.67082329]
[1730019526370,0.007634,67188.0,67187.0,0.77072329]
[1730019527428,0.007634,67188.0,67187.0,0.68349626]
[1730019531118,0.001634,67188.0,67187.0,0.68349626]
[1730019531559,0.001634,67188.0,67187.0,0.77072329]
[1730019531775,0.01115384,67197.0,67196.0,0.433318]
[1730019531985,0.001644,67198.0,67197.0,0.32827006]
[1730019532242,0.001644,67198.0,67197.0,0.48477387]
[1730019534205,0.001644,67198.0,67197.0,0.47877387]
[1730019535054,0.00141885,67198.0,67197.0,0.47877387]
[1730019536392,0.005,67205.0,67204.0,0.44769215]
[1730019536627,0.01614395,67205.0,67204.0,0.59819596]
[1730019536834,0.03672514,67205.0,67204.0,0.59819596]
[1730019537045,0.01614395,67205.0,67204.0,0.59819596]
[1730019538153,0.01614395,67205.0,67204.0,0.68542299]
[1730019538368,0.03675028,67205.0,67204.0,0.68542299]
[1730019538597,0.005,67205.0,67204.0,0.68542299]
[1730019538812,0.03674827,67205.0,67204.0,0.68542299]
[1730019539019,0.01614194,67205.0,67204.0,0.68542299]
[1730019539235,0.03674828,67205.0,67204.0,0.68542299]
[1730019539446,0.01614194,67205.0,67204.0,0.68542299]
[1730019539659,0.03674828,67205.0,67204.0,0.68542299]
[1730019539903,0.01614194,67205.0,67204.0,0.68542299]
[1730019540123,0.03174829,67205.0,67204.0,0.68542299]
[1730019540356,0.01114194,67205.0,67204.0,0.68542299]
[1730019540583,0.03174829,67205.0,67204.0,0.68542299]
[1730019540808,0.01114194,67205.0,67204.0,0.68542299]
[1730019541023,0.03174825,67205.0,67204.0,0.68542299]
[1730019541237,0.005,67206.0,67204.0,0.53662299]
[1730019541464,0.005,67206.0,67205.0,0.29930181]
[1730019541465,0.02282555,67206.0,67205.0,0.29930181]
[1730019541685,0.01892574,67206.0,67205.0,0.29930181]
[1730019541903,0.03006633,67206.0,67205.0,0.29930181]
[1730019545071,0.01614059,67206.0,67205.0,0.29930181]
[1730019545299,0.01892492,67206.0,67205.0,0.148798]
[1730019545527,0.09962492,67206.0,67205.0,0.148798]
[1730019545994,0.12858876,67206.0,67205.0,0.148798]
[1730019548486,0.09683994,67206.0,67205.0,0.148798]
[1730019548678,0.11076714,67206.0,67205.0,0.148798]
[1730019548932,0.12859267,67206.0,67205.0,0.148798]
[1730019552398,0.11077484,67206.0,67205.0,0.148798]
[1730019552672,0.12860584,67206.0,67205.0,0.148798]
[1730019554872,0.14920628,67206.0,67205.0,0.148798]
[1730019556374,0.14921488,67206.0,67205.0,0.148798]
[1730019556807,0.15085688,67206.0,67205.0,0.148798]
[1730019567002,0.13974053,67206.0,67205.0,0.148798]
[1730019567232,0.13696335,67206.0,67205.0,0.148798]
[1730019567452,0.12189481,67206.0,67205.0,0.148798]
[1730019567657,0.1330567,67206.0,67205.0,0.148798]
[1730019567918,0.15091573,67206.0,67205.0,0.148798]
[1730019570237,0.15091573,67206.0,67205.0,0.14698393]
[1730019570485,0.15091573,67206.0,67205.0,0.14625851]
[1730019571366,0.19552004,67206.0,67205.0,0.14625851]
[1730019572017,0.15091573,67206.0,67205.0,0.14625851]
[1730019572235,0.2178222,67206.0,67205.0,0.14625851]
[1730019573970,0.1371222,67206.0,67205.0,0.14625851]
[1730019574634,0.07021573,67206.0,67205.0,0.14625851]
[1730019576446,0.23498563,67206.0,67205.0,0.14625851]
[1730019576878,0.005,67205.0,67204.0,0.00129115]
[1730019577095,0.11492738,67205.0,67204.0,0.15009115]
[1730019577316,0.1356975,67205.0,67204.0,0.15009115]
[1730019578222,0.1356975,67205.0,67204.0,0.00129115]
[1730019578472,0.13569557,67205.0,67204.0,0.15009115]
[1730019579166,0.13569557,67205.0,67204.0,0.00129115]
[1730019579388,0.14424148,67205.0,67204.0,0.00129115]
[1730019579609,0.30901531,67205.0,67204.0,0.00129115]
[1730019580301,0.39827809,67205.0,67204.0,0.00129115]
[1730019580797,0.30901531,67205.0,67204.0,0.00129115]
[1730019581977,0.32686275,67205.0,67204.0,0.00129115]
[1730019582190,0.30900372,67205.0,67204.0,0.00129115]
[1730019582630,0.14422989,67205.0,67204.0,0.00129115]
[1730019583725,0.3089569,67205.0,67204.0,0.00129115]
[1730019585234,0.2334569,67205.0,67204.0,0.00129115]
[1730019585446,0.23344998,67205.0,67204.0,0.00129115]
[1730019589012,0.23343712,67205.0,67204.0,0.00129115]
[1730019589242,0.21949556,67205.0,67204.0,0.00129115]
[1730019589458,0.2334371,67205.0,67204.0,0.00129115]
[1730019590321,0.2334371,67205.0,67204.0,0.00211215]
[1730019591004,0.3226704,67205.0,67204.0,0.00211215]
[1730019592308,0.3226704,67205.0,67204.0,0.15091215]
[1730019592516,0.3226704,67205.0,67204.0,0.00211215]
[1730019592745,0.32266933,67205.0,67204.0,0.00211215]
[1730019596014,0.06870902,67205.0,67204.0,0.00211215]
[1730019596460,0.05086528,67205.0,67204.0,0.00211215]
[1730019596680,0.06871073,67205.0,67204.0,0.00211215]
[1730019599832,0.23237994,67205.0,67204.0,0.00211215]
[1730019600046,0.21750873,67205.0,67204.0,0.00211215]
[1730019600525,0.21751203,67205.0,67204.0,0.00211215]
[1730019600785,0.4900142,67205.0,67204.0,0.00211215]
[1730019601048,0.57985611,67205.0,67204.0,0.00211215]
[1730019602443,0.71523203,67205.0,67204.0,0.00211215]
[1730019603303,0.58149811,67205.0,67204.0,0.00211215]
[1730019603810,0.71523203,67205.0,67204.0,0.00211215]
[1730019604036,0.71509353,67205.0,67204.0,0.00211215]
[1730019604252,0.58138195,67205.0,67204.0,0.00211215]
[1730019606238,0.58133623,67205.0,67204.0,0.00211215]
[1730019606659,0.25783823,67205.0,67204.0,0.00211215]